bitfinex-derivatives/quotes_BTCF0:USTF0_20241227
["timestamp","ask_amount","ask_price","bid_price","bid_amount"]
[1735283945154,0.17573261,95764.0,95763.0,0.00802699]
[1735283945359,0.17673261,95764.0,95763.0,0.00957024]
[1735283946152,0.053271,95764.0,95763.0,0.00991463]
[1735283948142,0.053271,95764.0,95752.0,4.1e-07]
[1735283948348,0.053271,95764.0,95692.0,0.1045]
[1735283948349,0.20836582,95762.0,95730.0,0.05229]
[1735283948553,0.052288,95734.0,95727.0,0.41132624]
[1735283948858,0.052288,95734.0,95727.0,0.37362622]
[1735283949448,0.10418291,95760.0,95732.0,0.31233877]
[1735283949663,0.10418291,95750.0,95732.0,0.31233877]
[1735283949851,0.052285,95739.0,95732.0,0.31233877]
[1735283950358,0.001,95734.0,95732.0,0.053288]
[1735283951756,0.052285,95739.0,95733.0,0.05372092]
[1735283952457,0.001,95734.0,95733.0,0.05372092]
[1735283952957,0.053285,95739.0,95734.0,0.052287]
[1735283953151,0.001,95739.0,95736.0,0.052286]
[1735283953355,0.052288,95734.0,95733.0,0.00143292]
[1735283955652,0.053288,95734.0,95733.0,0.00143292]
[1735283955858,0.001,95734.0,95733.0,0.00143292]
[1735283956557,0.15447494,95745.0,95744.0,0.052282]
[1735283956758,0.09254939,95747.0,95746.0,0.052281]
[1735283957756,0.09254939,95747.0,95746.0,0.05371392]
[1735283958069,0.12339918,95752.0,95751.0,0.052278]
[1735283958270,0.00092,95788.0,95751.0,0.052278]
[1735283958271,0.15432376,95775.0,95768.0,0.052269]
[1735283959352,0.15432376,95775.0,95768.0,0.35383758]
[1735283959564,0.15432376,95775.0,95774.0,0.052266]
[1735283959966,0.052253,95797.0,95784.0,0.05226]
[1735283960151,0.052254,95796.0,95784.0,0.05226]
[1735283960465,0.052254,95796.0,95790.0,0.00156858]
[1735283960658,0.052254,95796.0,95793.0,0.00163641]
[1735283960959,0.10418291,95810.0,95796.0,0.052253]
[1735283961169,0.01038759,95813.0,95804.0,0.052249]
[1735283961665,0.052245,95813.0,95805.0,0.00170424]
[1735283961857,0.0309,95817.0,95805.0,0.00170424]
[1735283961858,0.052248,95806.0,95805.0,0.00170424]
[1735283962052,0.0307,95816.0,95805.0,0.00170424]
[1735283962660,0.0307,95816.0,95810.0,0.00186567]
[1735283962852,0.052246,95811.0,95810.0,0.00186567]
[1735283963958,0.0307,95816.0,95810.0,0.00186567]
[1735283964264,0.0317,95816.0,95810.0,0.00186567]
[1735283964763,0.0307,95816.0,95813.0,0.00186567]
[1735283965368,0.052243,95815.0,95813.0,0.00186567]
[1735283965662,0.0317,95816.0,95810.0,0.002]
[1735283965862,0.052243,95815.0,95814.0,0.00186567]
[1735283967767,0.01034053,95824.0,95815.0,0.052243]
[1735283967971,0.0329,95823.0,95815.0,0.052243]
[1735283968269,0.0329,95823.0,95814.0,0.00286567]
[1735283968270,0.052243,95816.0,95814.0,0.00286567]
[1735283968455,0.052243,95816.0,95814.0,0.00186567]
[1735283968653,0.052243,95816.0,95814.0,0.00286567]
[1735283968856,0.052243,95816.0,95815.0,0.00186567]
[1735283969266,0.052243,95816.0,95815.0,0.00286567]
[1735283969463,0.052243,95816.0,95815.0,0.00341049]
[1735283969659,0.00088001,95853.0,95815.0,0.00341049]
[1735283969863,0.10418291,95850.0,95820.0,0.10418291]
[1735283970064,0.052235,95831.0,95825.0,0.052238]
[1735283970257,0.0644,95836.0,95820.0,0.10418291]
[1735283970258,0.052236,95829.0,95820.0,0.10418291]
[1735283970457,0.052236,95829.0,95824.0,0.00241049]
[1735283970757,0.0644,95836.0,95824.0,0.00241049]
[1735283970966,0.052238,95826.0,95824.0,0.00241049]
[1735283971168,0.052238,95826.0,95825.0,0.00295531]
[1735283971966,0.0328,95828.0,95825.0,0.00295531]
[1735283972166,0.085037,95828.0,95825.0,0.00295531]
[1735283972372,0.085037,95828.0,95826.0,0.00329745]
[1735283973473,0.116632,95836.0,95827.0,0.00329745]
[1735283973661,0.0644,95836.0,95827.0,0.00329745]
[1735283973971,0.052236,95829.0,95827.0,0.00329745]
[1735283974365,0.005,95828.0,95827.0,0.00329745]
[1735283974573,0.057236,95828.0,95827.0,0.00329745]
[1735283974760,0.082236,95828.0,95827.0,0.00329745]
[1735283975566,0.052236,95828.0,95827.0,0.00329745]
[1735283975962,0.055236,95828.0,95827.0,0.00329745]
[1735283977963,0.055236,95828.0,95827.0,0.00384108]
[1735283978165,0.003,95828.0,95827.0,0.05607808]
[1735283979071,0.003,95828.0,95827.0,0.05662171]
[1735283980168,0.0664,95849.0,95827.0,0.05696603]
[1735283980370,0.0664,95849.0,95836.0,0.052232]
[1735283980572,0.052227,95845.0,95836.0,0.052232]
[1735283980877,0.05223,95841.0,95836.0,0.05696103]
[1735283981279,0.0664,95849.0,95836.0,0.05696103]
[1735283981567,0.052227,95845.0,95836.0,0.05696103]
[1735283981772,0.00856587,95837.0,95836.0,0.05696103]
[1735283982967,0.0628,95868.0,95849.0,0.052225]
[1735283983180,0.05222,95858.0,95850.0,0.10418291]
[1735283983368,0.05222,95858.0,95854.0,0.052222]
[1735283983975,0.10418291,95864.0,95856.0,0.00472903]
[1735283984183,0.052221,95857.0,95856.0,0.00472903]
[1735283985776,0.001,95858.0,95856.0,0.00527417]
[1735283985989,0.052221,95857.0,95856.0,0.00527417]
[1735283986278,0.001,95857.0,95812.0,0.24984695]
[1735283986575,0.05224,95821.0,95814.0,0.052244]
[1735283987366,0.052241,95820.0,95814.0,0.052244]
[1735283987570,0.0667,95839.0,95814.0,0.052244]
[1735283987776,0.052242,95818.0,95816.0,0.00556546]
[1735283990781,0.052242,95818.0,95816.0,0.00156546]
[1735283992587,0.052242,95818.0,95817.0,0.00109049]
[1735283993178,0.052242,95818.0,95816.0,0.00156546]
[1735283993179,0.052242,95818.0,95796.0,0.24984695]
[1735283993380,0.052253,95797.0,95796.0,0.24984695]
[1735283994687,0.053253,95797.0,95796.0,0.25484695]
[1735283994983,0.053253,95797.0,95796.0,0.005]
[1735283995779,0.052261,95782.0,95781.0,0.24984695]
[1735283996590,0.10418291,95791.0,95771.0,0.05383321]
[1735283996591,0.052264,95777.0,95776.0,0.24984695]
[1735283997794,0.053264,95777.0,95776.0,0.005]
[1735284000487,0.053264,95777.0,95776.0,0.00643275]
[1735284000688,0.052264,95777.0,95776.0,0.00143275]
[1735284000887,0.053264,95777.0,95776.0,0.00643275]
[1735284001286,0.053264,95777.0,95776.0,0.00143275]
[1735284001492,0.053264,95777.0,95776.0,0.00343275]
[1735284001493,0.052264,95777.0,95776.0,0.00343275]
[1735284001786,0.052264,95777.0,95776.0,0.00397932]
[1735284002487,0.0627835,95777.0,95776.0,0.00397932]
[1735284003080,0.0627835,95777.0,95776.0,0.00431918]
[1735284003792,0.0311,95790.0,95776.0,0.00431918]
[1735284004091,0.0311,95790.0,95783.0,0.00231918]
[1735284004092,0.05226,95785.0,95783.0,0.00231918]
[1735284005092,0.05226,95785.0,95784.0,0.00231918]
[1735284005294,0.052256,95793.0,95789.0,0.052257]
[1735284005789,0.35188001,95795.0,95784.0,0.00231918]
[1735284005989,0.351,95795.0,95791.0,0.052256]
[1735284006181,0.351,95795.0,95793.0,0.00231918]
[1735284006579,0.052252,95800.0,95795.0,0.052254]
[1735284006788,0.0662,95809.0,95793.0,0.00231918]
[1735284006983,0.05225,95804.0,95798.0,0.052252]
[1735284007185,0.05225,95804.0,95801.0,0.00231918]
[1735284007587,0.05225,95803.0,95801.0,0.00231918]
[1735284008294,0.05225,95803.0,95802.0,0.00231918]
[1735284008694,0.00256632,95806.0,95802.0,0.00286608]
[1735284008888,0.05225,95803.0,95802.0,0.00286608]
[1735284009991,0.00156632,95806.0,95802.0,0.05566398]
[1735284010186,0.00156632,95806.0,95804.0,0.052249]
[1735284010988,0.00156632,95806.0,95805.0,0.00341298]
[1735284011488,0.00156632,95806.0,95805.0,0.00375107]
[1735284011685,0.10418291,95820.0,95805.0,0.00375107]
[1735284011888,0.052241,95820.0,95812.0,0.052245]
[1735284012091,0.052241,95820.0,95805.0,0.00375107]
[1735284012286,0.0339,95836.0,95810.0,0.10418291]
[1735284012287,0.052232,95836.0,95810.0,0.10418291]
[1735284012594,0.052232,95836.0,95830.0,0.052235]
[1735284012595,0.055832,95836.0,95830.0,0.052235]
[1735284012796,0.055832,95836.0,95820.0,0.00375107]
[1735284012797,0.10934865,95840.0,95820.0,0.00375107]
[1735284013005,0.052239,95823.0,95820.0,0.00375107]
[1735284013502,0.052239,95823.0,95821.0,0.00375107]
[1735284013798,0.00516574,95840.0,95821.0,0.00375107]
[1735284013799,0.052238,95825.0,95821.0,0.00375107]
[1735284014486,0.052238,95825.0,95823.0,0.00375107]
[1735284015497,0.052238,95825.0,95820.0,0.05324]
[1735284015498,0.052238,95825.0,95824.0,0.00375107]
[1735284016490,0.053238,95825.0,95824.0,0.00375107]
[1735284016993,0.052238,95825.0,95824.0,0.00429676]
[1735284017303,0.053238,95825.0,95824.0,0.00429676]
[1735284018296,0.053238,95825.0,95824.0,0.00484245]
[1735284019391,0.001,95825.0,95824.0,0.00518264]
[1735284019687,0.053238,95825.0,95824.0,0.00518264]
[1735284025396,0.001,95825.0,95824.0,0.00572843]
[1735284025806,0.00516574,95840.0,95824.0,0.00572843]
[1735284025807,0.052231,95837.0,95830.0,0.052235]
[1735284026007,0.052237,95827.0,95824.0,0.03832843]
[1735284026191,0.052237,95827.0,95824.0,0.00572843]
[1735284026399,0.00516574,95840.0,95825.0,0.00572843]
[1735284026691,0.052233,95834.0,95832.0,0.00627422]
[1735284026892,0.00516574,95840.0,95832.0,0.00627422]
[1735284027096,0.00516574,95840.0,95836.0,0.052232]
[1735284027505,0.00516574,95840.0,95838.0,0.00627422]
[1735284027703,0.052238,95825.0,95820.0,0.10418291]
[1735284028407,0.052238,95825.0,95823.0,0.052239]
[1735284028601,0.001,95827.0,95824.0,0.052238]
[1735284028999,0.001,95827.0,95825.0,0.052238]
[1735284029204,0.052234,95833.0,95825.0,0.052238]
[1735284029906,0.001,95827.0,95825.0,0.052238]
[1735284030407,0.054234,95833.0,95820.0,0.10418291]
[1735284030610,0.054234,95833.0,95827.0,0.052237]
[1735284031312,0.052235,95830.0,95827.0,0.052237]
[1735284032501,0.0339,95836.0,95810.0,0.052246]
[1735284032502,0.052244,95814.0,95810.0,0.052246]
[1735284032700,0.052244,95814.0,95812.0,0.052245]
[1735284033203,0.10418291,95822.0,95808.0,0.18692453]
[1735284033405,0.052245,95812.0,95808.0,0.18692453]
[1735284034002,0.052245,95812.0,95809.0,0.052246]
[1735284034311,0.052245,95812.0,95810.0,0.00609496]
[1735284035406,0.052245,95812.0,95811.0,0.00143168]
[1735284035602,0.053245,95812.0,95811.0,0.00143168]
[1735284036211,0.052245,95812.0,95811.0,0.00143168]
[1735284036406,0.053245,95812.0,95811.0,0.00143168]
[1735284036817,0.052245,95812.0,95811.0,0.00143168]
[1735284037003,0.01027616,95822.0,95811.0,0.00543168]
[1735284037199,0.12341318,95823.0,95811.0,0.00543168]
[1735284037516,0.05081332,95813.0,95811.0,0.004]
[1735284039713,0.052247,95808.0,95807.0,0.18692453]
[1735284039908,0.052247,95808.0,95807.0,0.02922453]
[1735284041409,0.052251,95802.0,95801.0,0.24984695]
[1735284041608,0.052251,95802.0,95801.0,0.25093959]
[1735284041811,0.052258,95788.0,95787.0,0.00056]
[1735284042023,0.05226,95785.0,95784.0,0.00156596]
[1735284043112,0.052261,95782.0,95776.0,0.24984695]
[1735284043415,0.052261,95782.0,95763.0,0.5338]
[1735284043416,0.052261,95782.0,95763.0,0.50056]
[1735284043613,0.052271,95764.0,95763.0,0.5]
[1735284046214,0.053271,95764.0,95763.0,0.502]
[1735284047012,0.001,95764.0,95763.0,0.502]
[1735284049104,0.053271,95764.0,95763.0,0.502]
[1735284049912,0.001,95764.0,95763.0,0.55570246]
[1735284050217,0.001,95764.0,95763.0,0.50343046]
[1735284050410,0.001,95764.0,95763.0,0.50355145]
[1735284052809,0.052262,95781.0,95763.0,0.83695145]
[1735284053015,0.052262,95781.0,95779.0,0.052263]
[1735284053212,0.052262,95781.0,95780.0,0.0686]
[1735284053509,0.10418291,95790.0,95763.0,0.5354]
[1735284053713,0.10418291,95790.0,95765.0,0.05227]
[1735284053714,0.052257,95790.0,95765.0,0.05227]
[1735284053913,0.052257,95790.0,95763.0,0.5354]
[1735284053914,0.01073333,95792.0,95763.0,0.53596]
[1735284054217,0.052271,95764.0,95763.0,0.5354]
[1735284054807,0.052271,95764.0,95763.0,0.5334]
[1735284055209,0.052271,95764.0,95763.0,0.5]
[1735284055406,0.053271,95764.0,95763.0,0.503]
[1735284070012,0.001,95764.0,95763.0,0.503]
[1735284070221,0.15451821,95773.0,95772.0,0.052267]
[1735284070816,0.052262,95781.0,95763.0,0.503]
[1735284071120,0.18415847,95779.0,95763.0,0.803]
[1735284071326,0.18415847,95779.0,95777.0,0.052264]
[1735284071627,0.18415847,95779.0,95778.0,0.0343]
[1735284072216,0.23742147,95779.0,95778.0,0.0343]
[1735284072423,0.053263,95779.0,95778.0,0.0343]
[1735284072827,0.052263,95779.0,95778.0,0.0343]
[1735284073129,0.15470637,95789.0,95763.0,0.5]
[1735284073326,0.10418291,95780.0,95763.0,0.5]
[1735284073627,0.052268,95771.0,95763.0,0.5]
[1735284073821,0.052271,95765.0,95763.0,0.5]
[1735284074421,0.052271,95765.0,95763.0,0.505]
[1735284074623,0.052266,95774.0,95764.0,0.052271]
[1735284074922,0.15470637,95788.0,95764.0,0.052271]
[1735284074923,0.052267,95773.0,95764.0,0.052271]
[1735284075322,0.001,95765.0,95763.0,0.5056]
[1735284075520,0.052263,95780.0,95770.0,0.052268]
[1735284075729,0.052263,95780.0,95770.0,0.15645091]
[1735284075930,0.001,95774.0,95770.0,0.15645091]
[1735284076228,0.001,95774.0,95770.0,0.052268]
[1735284077224,0.052267,95772.0,95764.0,0.005]
[1735284077431,0.001,95765.0,95764.0,0.052271]
[1735284077932,0.052267,95772.0,95770.0,0.004]
[1735284078727,0.052267,95772.0,95767.0,0.052269]
[1735284080230,0.052267,95772.0,95768.0,0.052269]
[1735284080933,0.053267,95772.0,95768.0,0.052269]
[1735284081335,0.09279635,95774.0,95763.0,0.50056]
[1735284081527,0.001,95772.0,95771.0,0.052267]
[1735284083735,0.001,95774.0,95763.0,0.005]
[1735284084038,0.001,95774.0,95773.0,0.052266]
[1735284084229,0.09279635,95775.0,95773.0,0.052266]
[1735284084933,0.15470637,95793.0,95771.0,0.004]
[1735284085123,0.15470637,95793.0,95780.0,0.10418291]
[1735284085329,0.15470637,95793.0,95791.0,0.052256]
[1735284087231,0.052254,95795.0,95791.0,0.052256]
[1735284087431,0.052254,95795.0,95785.0,0.0104361]
[1735284087625,0.052254,95795.0,95781.0,0.1016]
[1735284088128,0.005,95793.0,95781.0,0.1016]
[1735284088324,0.005,95793.0,95792.0,0.052256]
[1735284088529,0.0036,95809.0,95792.0,0.052256]
[1735284088736,0.052244,95815.0,95799.0,0.10418291]
[1735284088737,0.055844,95815.0,95799.0,0.10418291]
[1735284088933,0.15830637,95819.0,95805.0,0.10418291]
[1735284089136,0.15830637,95819.0,95818.0,0.052242]
[1735284089434,0.15830637,95819.0,95806.0,0.1033]
[1735284089435,0.0036,95819.0,95809.0,0.10418291]
[1735284089636,0.18415847,95828.0,95827.0,0.052237]
[1735284089934,0.00156577,95841.0,95837.0,0.052231]
[1735284090133,0.05223,95840.0,95838.0,0.0353]
[1735284091842,0.05923,95840.0,95838.0,0.001]
[1735284092533,0.007,95840.0,95838.0,0.001]
[1735284093442,0.007,95840.0,95839.0,0.05223]
[1735284093833,0.007,95840.0,95838.0,0.001]
[1735284093834,0.052218,95862.0,95851.0,0.052224]
[1735284094131,0.00156515,95880.0,95849.0,0.20836582]
[1735284094337,0.052213,95872.0,95870.0,0.10418291]
[1735284094526,0.052213,95872.0,95864.0,0.052216]
[1735284094730,0.00156515,95880.0,95871.0,0.052213]
[1735284095028,0.05377315,95880.0,95871.0,0.052213]
[1735284095227,0.00156515,95880.0,95875.0,0.052211]
[1735284095435,0.00156515,95880.0,95870.0,0.10418291]
[1735284095436,0.00156515,95880.0,95878.0,0.052209]
[1735284096233,0.00156515,95880.0,95870.0,0.10518291]
[1735284096430,0.00156515,95880.0,95870.0,0.001]
[1735284096638,0.052209,95878.0,95870.0,0.001]
[1735284096838,0.00156515,95880.0,95870.0,0.001]
[1735284097344,0.00156515,95880.0,95871.0,0.001]
[1735284097947,0.00156515,95880.0,95868.0,0.10418291]
[1735284098329,0.00156515,95880.0,95877.0,0.052209]
[1735284099439,0.00156515,95880.0,95879.0,0.052209]
[1735284101543,0.00356515,95880.0,95879.0,0.052209]
[1735284103943,0.002,95880.0,95879.0,0.052209]
[1735284105147,0.002,95880.0,95869.0,0.052214]
[1735284105351,0.10618291,95880.0,95846.0,0.00156496]
[1735284105654,0.052219,95860.0,95851.0,0.052224]
[1735284105846,0.10418291,95870.0,95851.0,0.052224]
[1735284106045,0.05222,95858.0,95851.0,0.052224]
[1735284106253,0.087021,95857.0,95851.0,0.052224]
[1735284106454,0.052223,95852.0,95846.0,0.00156496]
[1735284106747,0.052226,95847.0,95846.0,0.00156496]
[1735284108346,0.052226,95847.0,95846.0,0.01056496]
[1735284108734,0.052226,95847.0,95846.0,0.00156496]
[1735284108946,0.052226,95847.0,95846.0,0.00656496]
[1735284109140,0.052229,95841.0,95829.0,0.052236]
[1735284109349,0.14128291,95840.0,95829.0,0.052236]
[1735284109555,0.14128291,95840.0,95830.0,0.052235]
[1735284109737,0.0371,95840.0,95832.0,0.052234]
[1735284109946,0.0371,95840.0,95834.0,0.052233]
[1735284111746,0.0371,95840.0,95834.0,0.060233]
[1735284111949,0.08933,95840.0,95834.0,0.060233]
[1735284112550,0.0371,95840.0,95834.0,0.002833]
[1735284112756,0.052232,95836.0,95834.0,0.002833]
[1735284112940,0.052236,95829.0,95818.0,0.052241]
[1735284113647,0.10418291,95830.0,95818.0,0.052241]
[1735284113849,0.052237,95827.0,95818.0,0.052241]
[1735284114845,0.052237,95827.0,95818.0,0.060241]
[1735284115447,0.052237,95827.0,95818.0,0.008]
[1735284115855,0.052237,95827.0,95820.0,0.05224]
[1735284116447,0.001,95829.0,95818.0,0.008]
[1735284116752,0.001,95829.0,95827.0,0.052237]
[1735284116948,0.001,95827.0,95819.0,0.052241]
[1735284117145,0.001,95827.0,95818.0,0.006]
[1735284117347,0.001,95827.0,95826.0,0.052237]
[1735284117547,0.0371,95840.0,95831.0,0.052234]
[1735284117754,0.0371,95840.0,95818.0,0.006]
[1735284117956,0.08933,95840.0,95818.0,0.006]
[1735284118149,0.001,95827.0,95826.0,0.052237]
[1735284118457,0.0382,95856.0,95844.0,0.052228]
[1735284118458,0.052222,95854.0,95844.0,0.052228]
[1735284118653,0.20836582,95854.0,95810.0,0.10418291]
[1735284118850,0.052225,95849.0,95834.0,0.052233]
[1735284119044,0.052226,95847.0,95831.0,0.001]
[1735284119249,0.0361,95855.0,95841.0,0.052229]
[1735284119457,0.052223,95853.0,95841.0,0.052229]
[1735284119652,0.052225,95849.0,95841.0,0.052229]
[1735284119850,0.10418291,95851.0,95832.0,0.074]
[1735284120156,0.052229,95842.0,95832.0,0.126234]
[1735284120357,0.052229,95842.0,95832.0,0.074]
[1735284120550,0.052224,95851.0,95839.0,0.05223]
[1735284120750,0.052226,95848.0,95839.0,0.05223]
[1735284120952,0.052228,95844.0,95839.0,0.05223]
[1735284121149,0.10418291,95850.0,95832.0,0.0448]
[1735284121357,0.10418291,95842.0,95832.0,0.008]
[1735284121658,0.052229,95841.0,95839.0,0.005]
[1735284122359,0.052229,95841.0,95817.0,0.0368]
[1735284122360,0.052238,95825.0,95817.0,0.0368]
[1735284122744,0.052239,95823.0,95817.0,0.0368]
[1735284123153,0.052242,95818.0,95815.0,0.052243]
[1735284124747,0.0723,95829.0,95815.0,0.004]
[1735284125460,0.052243,95816.0,95815.0,0.004]
[1735284127149,0.052229,95842.0,95824.0,0.052238]
[1735284127456,0.052233,95834.0,95831.0,0.052235]
[1735284128053,0.052233,95834.0,95830.0,0.10418291]
[1735284128054,0.052229,95841.0,95833.0,0.052234]
[1735284128246,0.052229,95841.0,95830.0,0.10418291]
[1735284128451,0.052229,95841.0,95838.0,0.05223]
[1735284129465,0.00156561,95845.0,95825.0,0.0346]
[1735284129661,0.00156561,95845.0,95830.0,0.10418291]
[1735284129962,0.00156561,95845.0,95836.0,0.052232]
[1735284129963,0.052228,95844.0,95836.0,0.052232]
[1735284130461,0.00156561,95845.0,95830.0,0.10418291]
[1735284130662,0.00156561,95845.0,95842.0,0.052228]
[1735284131360,0.002,95844.0,95830.0,0.10418291]
[1735284131552,0.052229,95843.0,95829.0,0.052236]
[1735284131750,0.052232,95837.0,95831.0,0.052234]
[1735284132067,0.052229,95842.0,95835.0,0.052232]
[1735284132261,0.05223,95840.0,95835.0,0.052232]
[1735284132457,0.001,95844.0,95830.0,0.008]
[1735284132661,0.052234,95832.0,95830.0,0.008]
[1735284133056,0.05223,95839.0,95830.0,0.008]
[1735284133856,0.05223,95839.0,95829.0,0.15641791]
[1735284133857,0.05223,95839.0,95829.0,0.10418291]
[1735284134058,0.001,95837.0,95831.0,0.007]
[1735284134556,0.05223,95839.0,95830.0,0.005]
[1735284134761,0.05223,95839.0,95833.0,0.052233]
[1735284135160,0.05323,95839.0,95833.0,0.052233]
[1735284135753,0.05223,95839.0,95833.0,0.052233]
[1735284136865,0.05223,95839.0,95834.0,0.052233]
[1735284138472,0.05223,95839.0,95834.0,0.055233]
[1735284138673,0.05223,95839.0,95835.0,0.052232]
[1735284140268,0.05223,95839.0,95835.0,0.054232]
[1735284141765,0.05223,95839.0,95836.0,0.052231]
[1735284142868,0.052231,95837.0,95835.0,0.002]
[1735284143261,0.0378,95838.0,95836.0,0.002]
[1735284143463,0.052231,95837.0,95836.0,0.002]
[1735284144970,0.052231,95837.0,95824.0,0.24984695]
[1735284144971,0.052235,95831.0,95824.0,0.052238]
[1735284145676,0.052232,95837.0,95824.0,0.052238]
[1735284145973,0.052234,95832.0,95824.0,0.052238]
[1735284147090,0.052234,95832.0,95825.0,0.052238]
[1735284147582,0.12386304,95834.0,95825.0,0.052238]
[1735284147885,0.0383,95836.0,95821.0,0.24984695]
[1735284147886,0.12386304,95835.0,95821.0,0.24984695]
[1735284148078,0.10418291,95830.0,95821.0,0.24984695]
[1735284148887,0.052239,95823.0,95821.0,0.24984695]
[1735284149080,0.052239,95823.0,95818.0,0.052242]
[1735284150084,0.052239,95823.0,95819.0,0.052241]
[1735284151684,0.052239,95823.0,95819.0,0.054241]
[1735284154491,0.06279643,95823.0,95819.0,0.054241]
[1735284156495,0.12386304,95826.0,95819.0,0.054241]
[1735284156496,0.05224,95822.0,95819.0,0.054241]
[1735284157591,0.05224,95822.0,95819.0,0.052241]
[1735284157896,0.05224,95822.0,95819.0,0.054241]
[1735284159993,0.12386304,95828.0,95819.0,0.002]
[1735284160197,0.12386304,95828.0,95827.0,0.052237]
[1735284160395,0.06636304,95828.0,95827.0,0.052237]
[1735284161388,0.06836304,95828.0,95827.0,0.052237]
[1735284161585,0.15401561,95834.0,95833.0,0.052234]
[1735284161994,0.21708969,95853.0,95833.0,0.352234]
[1735284162199,0.21708969,95853.0,95845.0,0.052227]
[1735284162495,0.15485075,95854.0,95845.0,0.052227]
[1735284162993,0.15485075,95854.0,95836.0,0.10418291]
[1735284163191,0.15485075,95854.0,95833.0,0.06252727]
[1735284163192,0.15485075,95854.0,95844.0,0.10418291]
[1735284163501,0.15485075,95854.0,95853.0,0.052223]
[1735284163890,0.052218,95863.0,95855.0,0.052221]
[1735284164197,0.0349,95864.0,95855.0,0.052221]
[1735284164400,0.052219,95860.0,95855.0,0.052221]
[1735284164898,0.0349,95864.0,95849.0,0.25001617]
[1735284165090,0.052222,95855.0,95849.0,0.25001617]
[1735284165495,0.052222,95855.0,95848.0,0.18737029]
[1735284165799,0.052223,95854.0,95848.0,0.18737029]
[1735284165998,0.052224,95851.0,95848.0,0.18737029]
[1735284166301,0.088025,95850.0,95848.0,0.18737029]
[1735284166700,0.052222,95855.0,95852.0,0.052223]
[1735284166896,0.055222,95855.0,95852.0,0.052223]
[1735284167497,0.052222,95855.0,95852.0,0.052223]
[1735284168101,0.057222,95855.0,95852.0,0.052223]
[1735284168693,0.057222,95855.0,95845.0,0.18737029]
[1735284168694,0.005,95855.0,95845.0,0.18737029]
[1735284168899,0.052223,95854.0,95847.0,0.052226]
[1735284169701,0.052223,95854.0,95848.0,0.052225]
[1735284169900,0.052223,95854.0,95849.0,0.052225]
[1735284170205,0.055223,95854.0,95843.0,0.18737029]
[1735284170391,0.055223,95854.0,95850.0,0.052224]
[1735284170591,0.052224,95851.0,95843.0,0.052228]
[1735284170796,0.052225,95849.0,95843.0,0.052228]
[1735284171203,0.052228,95844.0,95838.0,0.18737029]
[1735284171410,0.0364,95843.0,95838.0,0.18737029]
[1735284171605,0.05223,95840.0,95838.0,0.18737029]
[1735284171804,0.05223,95840.0,95836.0,0.052232]
[1735284172299,0.052229,95842.0,95838.0,0.05223]
[1735284172806,0.0357,95841.0,95838.0,0.05223]
[1735284173210,0.0357,95841.0,95839.0,0.05223]
[1735284173995,0.052229,95842.0,95839.0,0.05223]
[1735284174604,0.052229,95842.0,95839.0,0.05323]
[1735284175398,0.0364,95843.0,95841.0,0.052229]
[1735284179010,0.052225,95849.0,95845.0,0.052227]
[1735284179702,0.035,95858.0,95857.0,0.052221]
[1735284180008,0.035,95858.0,95848.0,0.10418291]
[1735284180203,0.052222,95855.0,95851.0,0.052224]
[1735284180804,0.052225,95848.0,95839.0,0.18737029]
[1735284181008,0.052225,95848.0,95845.0,0.052227]
[1735284181602,0.052226,95847.0,95845.0,0.052227]
[1735284185012,0.054226,95847.0,95845.0,0.052227]
[1735284185219,0.002,95847.0,95845.0,0.052227]
[1735284186316,0.0354,95868.0,95862.0,0.052217]
[1735284186718,0.052215,95867.0,95862.0,0.052217]
[1735284187020,0.052219,95861.0,95854.0,0.052222]
[1735284187212,0.052216,95866.0,95849.0,0.052224]
[1735284187407,0.0354,95868.0,95849.0,0.052224]
[1735284187607,0.0354,95868.0,95850.0,0.10418291]
[1735284188013,0.009,95867.0,95862.0,0.001]
[1735284188215,0.009,95867.0,95850.0,0.15640691]
[1735284188412,0.052222,95854.0,95850.0,0.052224]
[1735284188717,0.0371,95853.0,95850.0,0.052224]
[1735284188913,0.0371,95853.0,95840.0,0.10418291]
[1735284189220,0.0371,95853.0,95840.0,0.052229]
[1735284189515,0.052227,95846.0,95840.0,0.052229]
[1735284189722,0.0341,95845.0,95840.0,0.052229]
[1735284190309,0.0341,95845.0,95839.0,0.31247719]
[1735284190511,0.052229,95841.0,95839.0,0.31247719]
[1735284190710,0.052229,95841.0,95840.0,0.001]
[1735284191112,0.05223,95840.0,95838.0,0.31247719]
[1735284191617,0.0357,95839.0,95838.0,0.31247719]
[1735284192624,0.0357,95839.0,95837.0,0.052231]
[1735284193218,0.052228,95843.0,95840.0,0.052229]
[1735284193530,0.05223,95840.0,95838.0,0.001]
[1735284193908,0.05223,95840.0,95835.0,0.052232]
[1735284194112,0.0341,95845.0,95837.0,0.002]
[1735284194323,0.052231,95839.0,95837.0,0.002]
[1735284194520,0.052231,95839.0,95835.0,0.052232]
[1735284194719,0.052231,95839.0,95838.0,0.001]
[1735284194924,0.0341,95845.0,95839.0,0.05223]
[1735284195226,0.052227,95846.0,95843.0,0.052228]
[1735284197013,0.053227,95846.0,95843.0,0.052228]
[1735284201025,0.052228,95844.0,95842.0,0.2503916]
[1735284201725,0.052228,95844.0,95843.0,0.2503916]
[1735284202516,0.052228,95844.0,95836.0,0.31247719]
[1735284202517,0.052231,95837.0,95836.0,0.31247719]
[1735284202914,0.052233,95834.0,95833.0,0.00156514]
[1735284204320,0.052233,95834.0,95833.0,0.00556514]
[1735284205729,0.14515411,95834.0,95833.0,0.00556514]
[1735284206521,0.15560949,95834.0,95833.0,0.00556514]
[1735284207025,0.06268838,95834.0,95833.0,0.00556514]
[1735284210934,0.15548298,95834.0,95833.0,0.00556514]
[1735284212435,0.06268838,95834.0,95833.0,0.00556514]
[1735284214334,0.06268838,95834.0,95833.0,0.004]